Cogmind - Beta 9.2 @@@ ROGUE MODE // 2019.11.14 @ 17:58:20 Player: LaGrange Result: Destroyed by S-10 Pest with Light Assault Rifle Performance ------------- Evolutions (1) 500 Regions Visited (3) 600 Robots Destroyed (15) 75 Value Destroyed (471) 471 Prototype IDs (0) 0 Alien Tech Used (0) 0 Bonus (0) 0 TOTAL SCORE: 1646 Bonus ------- None Cogmind --------- Core Integrity 0/400 Matter 290/300 Energy 148/250 System Corruption 1% Temperature Cool (0) Movement Treading (160) Location -9/Storage Parts ------- > --- POWER (1) -------- Ion Engine > --- PROPULSION (2) --- Light Treads > --- UTILITY (4) ------ Small Storage Unit Small Storage Unit Transmission Jammer > --- WEAPON (2) ------- (None) > --- INVENTORY (8) ---- Light Ion Engine Aluminum Leg Compact Wheel Drone Bay (0/2) Drone Bay (0/2) Peak State ------------ > --- POWER ------------ Light Nuclear Core > --- PROPULSION ------- Compact Wheel Compact Wheel > --- UTILITY ---------- Small Storage Unit Small Storage Unit Drone Bay Drone Bay > --- WEAPON ----------- EM Pulse Gun Beam Cannon > --- INVENTORY -------- Ion Engine Ion Engine Light Ion Engine Aluminum Leg Aluminum Leg Aluminum Leg Heat Sink Transmission Jammer [Rating: 20] Favorites ----------- Power Light Nuclear Core Engine Ion Engine Power Core Light Nuclear Core Propulsion Compact Wheel Treads Light Treads Leg Aluminum Leg Wheel Compact Wheel Utility Small Storage Unit Device Drone Bay Storage Small Storage Unit Weapon Assault Rifle Energy Gun EM Pulse Gun Energy Cannon Beam Cannon Ballistic Gun Assault Rifle Launcher Grenade Launcher Build | -11 -10 -9 -9 ------- Run | Scr Mat Mat Sto Slots Evolved 2 | . . 2 . Power . | . . . . Propulsion . | . . . . Utility 2 | . . 2 . Weapon . | . . . . Parts Attached 37 | 7 5 6 19 Power 7 | 1 3 . 3 Engine 6 | 1 2 . 3 Core 1 | . 1 . . Reactor . | . . . . Propulsion 11 | 2 1 . 8 Treads 3 | . . . 3 Leg 3 | . . . 3 Wheel 5 | 2 1 . 2 Hover . | . . . . Flight . | . . . . Utility 13 | 2 . 3 8 Device 11 | . . 3 8 Storage 2 | 2 . . . Processor . | . . . . Hackware . | . . . . Protection . | . . . . Artifact . | . . . . Weapon 6 | 2 1 3 . Energy Gun 3 | 1 . 2 . Energy Cannon 1 | . . 1 . Ballistic Gun 1 | 1 . . . Ballistic Cannon . | . . . . Launcher 1 | . 1 . . Special Weapon . | . . . . Impact Weapon . | . . . . Slashing Weapon . | . . . . Piercing Weapon . | . . . . Special Melee Weapon . | . . . . Unidentified Prototypes . | . . . . Parts Lost 15 | . 2 3 10 Power 4 | . 1 . 3 Propulsion 4 | . 1 . 3 Utility 3 | . . 1 2 Weapon 4 | . . 2 2 Highest Loss Streak 5 | . 2 2 5 Average Slot Usage (%) 89 | . 100 78 84 Engine 6 | . 10 . 4 Core 5 | . 3 11 6 Leg 2 | . . . 8 Wheel 20 | . 28 22 10 Device 7 | . . 1 21 Storage 24 | . 28 22 22 Energy Gun 4 | . . 9 5 Energy Cannon 2 | . . 5 4 Ballistic Gun 7 | . 14 6 . Launcher 6 | . 13 . . Naked Turns . | . . . . Heaviest Build 30 | 17 18 20 30 Greatest Support 32 | 32 32 32 32 Greatest Overweight (x) 1 | . . . 1 Average Overweight (x) . | . . . . Largest Inventory Capacity 8 | 8 8 8 8 Average Capacity 7 | 6 8 8 8 Most Carried 8 | 7 8 8 8 Average Carried 7 | 4 7 7 6 Final Capacity 8 | 8 8 8 8 Final Carried 8 | 7 8 8 5 Class Distribution -------------------- 100% | Mutant Dominant Class ---------------- Mutant | -10/Materials Mutant | -9/Materials Mutant | -9/Storage Resources | -11 -10 -9 -9 ----------- Run | Scr Mat Mat Sto Matter Collected 719 | 276 107 140 196 Remotely . | . . . . Salvage Created 435 | 59 205 151 20 Parts 26 | 2 16 8 . Haulers Intercepted . | . . . . Recyclers Shooed . | . . . . Parts Field Recycled . | . . . . Retrieved Matter . | . . . . Parts Self-Destructed . | . . . . Prevented . | . . . . Kills | -11 -10 -9 -9 ------- Run | Scr Mat Mat Sto Combat Hostiles Destroyed 10 | . 6 3 1 Guns 5 | . 2 2 1 Cannons 1 | . . 1 . AOE 4 | . 4 . . Classes Destroyed 7 | 1 3 2 1 Builder 2 | . 2 . . Recycler 1 | 1 . . . Operator 1 | . . 1 . Watcher 1 | . 1 . . Swarmer 1 | . . . 1 Grunt 8 | . 6 2 . Sentry 1 | . . 1 . Best Kill Streak 4 | 1 4 2 1 Combat Bots Only 2 | . 2 2 1 Max Kills in Single Turn 2 | 1 2 1 1 Gunslinging . | . . . . Exploded 2 | . 2 . . Melee . | . . . . Uniques/NPCs Destroyed . | . . . . Combat | -11 -10 -9 -9 -------- Run | Scr Mat Mat Sto Damage Taken 1771 | . 335 272 1164 Core 448 | . 47 73 328 Absorbed by Shields . | . . . . Core Remaining (%) 90 | 100 81 . . Volleys Fired 35 | 2 15 12 6 Largest 2 | 2 2 2 2 Hottest 100 | 70 50 100 100 Shots Fired 67 | 4 30 24 9 Gun 39 | 4 15 14 6 Cannon 12 | . . 9 3 Launcher 16 | . 15 1 . Special . | . . . . Kinetic 23 | 2 15 6 . Thermal 14 | 2 . 9 3 Explosive 16 | . 15 1 . Electromagnetic 14 | . . 8 6 Robot Hit Streak 9 | 4 4 9 8 Robot Miss Streak 4 | . 3 4 . Penetration Max . | . . . . Secondary Targets . | . . . . Shots Hit Robots 47 | 4 17 18 8 Core Hits 30 | 2 20 6 2 Critical Hits . | . . . . Critical Kills . | . . . . Critical Parts Destroyed . | . . . . Melee Attacks . | . . . . Impact . | . . . . Slashing . | . . . . Piercing . | . . . . Sneak Attacks . | . . . . Combat Hostiles . | . . . . Follow-up Attacks . | . . . . Damage Inflicted 1172 | 48 795 225 104 Guns 309 | 48 106 86 69 Cannons 156 | . . 121 35 Explosions 707 | . 689 18 . Melee . | . . . . Ramming . | . . . . Kinetic 166 | 23 106 37 . Thermal 221 | 25 40 121 35 Explosive 560 | . 542 18 . Electromagnetic 225 | . 107 49 69 Impact . | . . . . Slashing . | . . . . Piercing . | . . . . Highest Corruption 1 | . . 1 1 Average Corruption 1 | . . 1 1 Corruption Purged . | . . . . Effects 2 | . . . 2 Message Errors 2 | . . . 2 Overload Shots . | . . . . Overflow Damage 19 | . 15 4 . Projectiles . | . . . . Explosions 19 | . 15 4 . Melee . | . . . . Knockbacks . | . . . . Impact . | . . . . Kinetic . | . . . . Secondary . | . . . . Self-Inflicted Damage 182 | . 88 94 . Shots 7 | . 4 3 . Rammed . | . . . . Targets Rammed . | . . . . Kicked . | . . . . Crushed . | . . . . Highest Temperature 171 | 9 17 171 72 Average Temperature 41 | 6 5 71 37 Received Heat Transfer 333 | . 135 66 132 Siege Activations . | . . . . Robots Corrupted . | . . . . Combat Hostiles . | . . . . Parts Fried . | . . . . Impact Corruptions . | . . . . Robots Melted . | . . . . Combat Hostiles . | . . . . Parts Melted 1 | . . . 1 Heat Transferred 457 | 74 50 259 74 Parts Sabotaged . | . . . . Parts Stolen . | . . . . Parts Stripped . | . . . . Power Chain Reactions 1 | . 1 . . Missiles Intercepted . | . . . . Alert | -11 -10 -9 -9 ------- Run | Scr Mat Mat Sto Peak Influence 222 | 5 207 222 95 Average Influence 91 | 3 110 164 47 Maximum Alert Level 1 | . 1 1 . Low Security (%) 89 | 100 80 84 100 Level 1 10 | . 19 15 . Level 2 . | . . . . Level 3 . | . . . . Level 4 . | . . . . Level 5 . | . . . . High Security . | . . . . Max Security . | . . . . Squads Dispatched 4 | . 2 1 1 Investigation . | . . . . Extermination . | . . . . Reinforcement 4 | . 2 1 1 Assault . | . . . . Garrison . | . . . . Intercept . | . . . . Construction Impeded . | . . . . Haulers Reinforced . | . . . . Stealth | -11 -10 -9 -9 --------- Run | Scr Mat Mat Sto Distress Signals 2 | . . . 2 Communications Jammed . | . . . . Distress Signals . | . . . . Times Spotted 32 | . 10 4 18 Peak Tracking Total 9 | . 2 2 9 Tactical Retreats 2 | . . . 2 Traps | -11 -10 -9 -9 ------- Run | Scr Mat Mat Sto Traps Triggered . | . . . . Indirectly . | . . . . Trap Hack Attempts . | . . . . Triggered . | . . . . Disarmed . | . . . . Reprogrammed . | . . . . Reused . | . . . . Traps Extracted . | . . . . Installed . | . . . . Triggered . | . . . . Machines | -11 -10 -9 -9 ---------- Run | Scr Mat Mat Sto Machines Disabled 7 | . 3 4 . Max in Single Turn 4 | . 2 4 . Machines Sabotaged . | . . . . Garrisons Compromised . | . . . . Overloaded Fab Kills . | . . . . Fab Network Shutdowns . | . . . . Hacking | -11 -10 -9 -9 --------- Run | Scr Mat Mat Sto Machines Accessed 5 | . 3 1 1 Terminals 3 | . 1 1 1 Fabricators . | . . . . Repair Stations 1 | . 1 . . Recycling Units 1 | . 1 . . Scanalyzers . | . . . . Garrison Access . | . . . . Total Hacks 18 | . 14 2 2 Successful 8 | . 7 . 1 Failed 10 | . 7 2 1 Catastrophic 2 | . . 1 1 Database Lockouts . | . . . . Manual 3 | . 2 . 1 Terminals 11 | . 7 2 2 Fabricators . | . . . . Repair Stations 2 | . 2 . . Recycling Units 5 | . 5 . . Scanalyzers . | . . . . Garrison Access . | . . . . Terminal Hacks 5 | . 4 . 1 Open Door 1 | . . . 1 Dispatch Records 1 | . 1 . . Surveillance Status 1 | . 1 . . Hauler Manifests 1 | . 1 . . Zone Layout 1 | . 1 . . Fabricator Hacks . | . . . . Repair Station Hacks . | . . . . Recycling Unit Hacks 3 | . 3 . . Process 1 | . 1 . . Report Inventory 1 | . 1 . . Retrieve Matter 1 | . 1 . . Scanalyzer . | . . . . Garrison Access Hacks . | . . . . Unauthorized Hacks . | . . . . Terminals . | . . . . Fabricators . | . . . . Repair Stations . | . . . . Recycling Units . | . . . . Scanalyzers . | . . . . Garrison Access . | . . . . Data Cores Recovered . | . . . . Used . | . . . . Hacking Detections 4 | . 2 1 1 Full Trace Events . | . . . . Feedback Events . | . . . . Feedback Blocked . | . . . . Robot Schematics Acquired . | . . . . Robots Built . | . . . . Matter . | . . . . Time . | . . . . Total Robot Build Rating . | . . . . Part Schematics Acquired . | . . . . Parts Built . | . . . . Matter . | . . . . Time . | . . . . Total Part Build Rating . | . . . . Parts Repaired . | . . . . Time . | . . . . Parts Recycled . | . . . . Recycled Matter 15 | . 15 . . Retrieved Matter . | . . . . Retrieved Components . | . . . . Parts Scanalyzed . | . . . . Part Schematics Acquired . | . . . . Parts Damaged . | . . . . Bothacking | -11 -10 -9 -9 ------------ Run | Scr Mat Mat Sto Used RIF Installer . | . . . . Robots Hacked . | . . . . Non-combat . | . . . . Combat . | . . . . Robot Hacks Applied . | . . . . Relay Couplers Released . | . . . . Robots Rewired . | . . . . Allies Hacked . | . . . . Hacks Repelled . | . . . . Allies | -11 -10 -9 -9 -------- Run | Scr Mat Mat Sto Total Allies . | . . . . Largest Group . | . . . . Highest-Rated Group . | . . . . Highest-Rated Ally . | . . . . Total Orders . | . . . . Ally Attacks . | . . . . Total Damage . | . . . . Kills . | . . . . Allies Corrupted . | . . . . Allies Melted . | . . . . Intel | -11 -10 -9 -9 ------- Run | Scr Mat Mat Sto Robot Analysis Total . | . . . . Derelict Logs Recovered . | . . . . Drone Launches 10 | . . . 10 Drone Recoveries . | . . . . Exploration | -11 -10 -9 -9 ------------- Run | Scr Mat Mat Sto Turns Passed 677 | 72 266 139 200 Spaces Moved 444 | 50 204 86 104 Core 2 | 2 . . . Treads 9 | . . . 9 Legs 52 | . . . 52 Wheels 381 | 48 204 86 43 Hover . | . . . . Flight . | . . . . Fastest Speed 50 | 50 100 100 100 Average Speed 104 | 98 100 100 121 Slowest Speed 160 | 100 100 100 160 Overloaded Moves . | . . . . Propulsion Burnouts . | . . . . Robots Hopped . | . . . . Cave-ins Triggered . | . . . . Exploration Rate (%) 18 | 5 34 9 25 Regions Visited 3 Branch Regions 1 Pre-discovered Areas . | . . . . Known Exits Taken . | . . . . Unknown Exits Taken 3 | 1 1 1 . Scrap Searched . | . . . . Spaces Dug . | . . . . Terrain Destroyed 63 | . 61 2 . Melee . | . . . . Projectile . | . . . . AOE 63 | . 61 2 . Actions | -11 -10 -9 -9 --------- Run | Scr Mat Mat Sto Total 578 | 65 235 113 165 Wait 40 | . 6 7 27 Move 441 | 49 203 85 104 Hop . | . . . . Pick Up 18 | 7 4 3 4 Fast Attach 12 | 7 . 2 3 Attach 11 | . 2 3 6 Detach 1 | . . . 1 Swap 14 | . 3 1 10 Drop 6 | . 2 . 4 Fire 35 | 2 15 12 6 Melee . | . . . . Ram . | . . . . Kick . | . . . . Crush . | . . . . Escape Stasis . | . . . . Rewire . | . . . . Trap . | . . . . Miscellaneous . | . . . . Route ------- -11/Scrapyard -10/Materials -9/Materials -9/Storage History --------- Turn | Location | Event 20 | -11/Scrapyard | Discovered new exit (range 16) 73 | -11/Scrapyard | Entered Materials 313 | -10/Materials | Discovered new exit (range 16) 321 | -10/Materials | Build established: Mutant 339 | -10/Materials | Entered another Materials area 339 | -9/Materials | Evolved 2 slots: Utility x2 439 | -9/Materials | Discovered new exit (range 5) 478 | -9/Materials | Entered Storage 620 | -9/Storage | Lost 5 parts (1p1n1u2w) 634 | -9/Storage | Core integrity fell below 50% 657 | -9/Storage | Core integrity fell below 20% 678 | -9/Storage | Destroyed by S-10 Pest with Light Assault Rifle Last Messages --------------- 00613_ Acquired Lgt. Treads. 00614_ S-10 Pest destroyed. 00615_ Drone destroyed. 00618_ Acquired 14 matter. 00621_ Drone destroyed. 00626_ Acquired 5 matter. 00628_ Acquired 15 matter. 00630_ Lgt. Ion Engine destroyed. 00636_ Aluminum Leg destroyed. 00636_ Acquired 14 matter. 00642_ Acquired Lgt. Ion Engine. 00644_ Acquired 107 matter. 00645_ Drone destroyed. 00645_ U-05 Engineer builds a Door. 00649_ Acquired 2 matter. 00653_ W-16 Scout sends out distress signal. 00662_ Aluminum Leg destroyed. 00669_ Ion Engine destroyed. 00672_ Heat Sink destroyed. 00676_ S-10 Pest destroyed. Map ----- +----------------------------------------------------+ | ??????????????????# #????????????????????? | | ??????????????????# #????????????????????? | | ??????????????????# #????????????????????? | | ??????????????????# #????????????????????? | | ?????????????????? ????????????????????? | | ?????????????????? ????????????????????? | | ?????????????????? ????????????????????? | | ??????????????????# #????????????????????? | | ###???????????????# #????????????????????? | | #???????????????#%#????????????????????? | | #???????????????# #????????????????????? | | #???????????????# #???#####????????????? | | #???????????????# ##### #????????????? | | #???????????????# #????????????? | | #???????????????####### +????????????? | | #?????????????????????## ##????????????? | | #??????????????????????# #?????????????? | | #??????????????????????# #?????????????? | | #??????????????????????# #?????????????? | | #??????????#######?????# #?????????????? | | #???######## ####### ###???????????? | | #?? ! ## #???????????? | | %#? ## +???????????? | | # ## =s #???????????? | | / """ ""???# #####s###+#???????????? | | # """ ""???## ###! s@ #???????????? | | " """ ""????# #?# """"" #???????????? | | % # #?# #?# """"" #???????????? | | # #?# #?# """"" #???????????? | | +############?# #?# #???????????? | | #????????# #?# """"" #???????????? | | #????????# %#?# """"" #???????????? | | """" #????????# #?# ??????#???????????? | | ???" #????????# "#?# ??????????????????? | | ???" #????????# " ##################?????? | | """" ########## " % % #?????? | | + %^ #?????? | | ########## [ %= #?????? | | #?????######+#+#########+######?????? | | ######?????# ! #???# T#????????? | | ???????????# #???## ###????????? | | ???????????# #???# =!#?????????? | | ???????????# #???# #?????????? | | ???????????# #???#! !#?????????? | | ???????????# #???# !#?????????? | | ???????????# #???#####?????????? | | ???????????#############?????????????????? | | | | | | | +----------------------------------------------------+ Best States ------------- Heat Dissipation 42 Energy Generation 14 Energy Capacity 250 Matter Stores 300 Matter Capacity 300 Sight Range 16 Terrain Scan Density 10 Jamming Range 8 Evasion (%) 40 Recoil Reduction 1 Item Schematics ----------------- None Robot Schematics ------------------ None Fabricated ------------ Nothing Alien Tech Used ----------------- None Achievements -------------- None Challenges ------------ None Game ------ Seed ChargeMediumRedirector Manual? 0 Play Time 00:38:58 Cumulative 20.9 hours Start 2019.11.13 @ 21:17:19 End 2019.11.14 @ 17:58:20 Sessions 3 Manual Loads 0 Difficulty Rogue Special Mode None Game No. 16 Rogue 16 Adventurer 0 Explorer 0 Win Type - Total 0 Types 0/0/0/0/0/0/0 Lore% 15 Gallery% 18 Achievement% 12 Wizard Run 0 Options --------- ASCII 0 Keyboard 0 Movement Mouse Keybinds 0 Fullscreen 1 Font 18/Terminus Map View 76x50 Tactical HUD 1 Map Filters NONE Filters NONE Steam 1 RUN: f602d5fc-ee1f-445b-8309-2210d74a6d51